[Event "*** Titled Tuesday Blitz"]
[Site "Chess.com"]
[Date "2020.11.03"]
[Round "7"]
[White "MariaFominykh"]
[Black "PavlovDanila"]
[Result "0-1"]
[WhiteElo "2344"]
[BlackElo "2689"]
[TimeControl "180+1"]
[EndTime "11:20:18 PST"]
[Termination "PavlovDanila won by resignation"]

1. d4 {[%clk 0:03:00.9]} 1... Nf6 {[%clk 0:02:59.7]} 2. c4 {[%clk 0:03:01.5]}
2... g6 {[%clk 0:02:59.5]} 3. Nc3 {[%clk 0:03:02.1]} 3... Bg7 {[%clk 0:02:59.9]}
4. e4 {[%clk 0:03:01.9]} 4... d6 {[%clk 0:03:00.1]} 5. Nf3 {[%clk 0:03:02.1]}
5... O-O {[%clk 0:02:59.4]} 6. h3 {[%clk 0:03:00.3]} 6... e5 {[%clk 0:02:59.3]}
7. d5 {[%clk 0:03:00.2]} 7... Ne8 {[%clk 0:02:50.1]} 8. g4 {[%clk 0:02:57.6]}
8... f5 {[%clk 0:02:50.4]} 9. gxf5 {[%clk 0:02:57.4]} 9... gxf5 {[%clk
0:02:51.3]} 10. exf5 {[%clk 0:02:52.4]} 10... Bxf5 {[%clk 0:02:52.2]} 11. Rg1
{[%clk 0:02:50.9]} 11... Kh8 {[%clk 0:02:52.1]} 12. Ng5 {[%clk 0:02:46.1]} 12...
Qd7 {[%clk 0:02:45.1]} 13. Bd3 {[%clk 0:02:39.6]} 13... Na6 {[%clk 0:02:41.3]}
14. Be3 {[%clk 0:02:11.6]} 14... Nb4 {[%clk 0:02:30.6]} 15. Bxf5 {[%clk
0:02:10]} 15... Qxf5 {[%clk 0:02:30.5]} 16. Nge4 {[%clk 0:01:40]} 16... Nf6
{[%clk 0:02:20.7]} 17. a3 {[%clk 0:01:11.6]} 17... Nxe4 {[%clk 0:01:27.5]} 18.
Nxe4 {[%clk 0:01:10.3]} 18... Qxe4 {[%clk 0:01:27.7]} 19. axb4 {[%clk 0:01:10]}
19... Qxc4 {[%clk 0:01:20.1]} 20. Qg4 {[%clk 0:00:55.4]} 20... Qxg4 {[%clk
0:01:14.2]} 21. hxg4 {[%clk 0:00:50.7]} 21... a6 {[%clk 0:01:10.7]} 22. Rc1
{[%clk 0:00:46.3]} 22... Rf7 {[%clk 0:01:09.3]} 23. Ke2 {[%clk 0:00:44.3]} 23...
Rg8 {[%clk 0:01:00.2]} 24. Rc4 {[%clk 0:00:36.4]} 24... Bf6 {[%clk 0:00:58.7]}
25. g5 {[%clk 0:00:34.3]} 25... Bd8 {[%clk 0:00:57.9]} 26. Rh4 {[%clk
0:00:27.7]} 26... Rg6 {[%clk 0:00:55.6]} 27. Rh5 {[%clk 0:00:25.4]} 27... Kg8
{[%clk 0:00:53.2]} 28. Rgh1 {[%clk 0:00:17.9]} 28... Rfg7 {[%clk 0:00:50.9]} 29.
Rg1 {[%clk 0:00:18.1]} 29... h6 {[%clk 0:00:25.9]} 30. gxh6 {[%clk 0:00:17.3]}
30... Rxg1 {[%clk 0:00:26.8]} 31. hxg7 {[%clk 0:00:17.3]} 31... Kxg7 {[%clk
0:00:27.7]} 32. Rh4 {[%clk 0:00:16.4]} 32... Bxh4 {[%clk 0:00:26.4]} 0-1

[Event "*** Titled Tuesday Blitz"]
[Site "Chess.com"]
[Date "2020.11.03"]
[Round "7"]
[White "GM_Huschenbeth"]
[Black "hungrycaterpillar4"]
[Result "0-1"]
[WhiteElo "2389"]
[BlackElo "2571"]
[TimeControl "180+1"]
[EndTime "11:20:22 PST"]
[Termination "hungrycaterpillar4 won on time"]

1. e4 {[%clk 0:03:00.9]} 1... c5 {[%clk 0:02:59.9]} 2. Nf3 {[%clk 0:03:00.8]}
2... Nc6 {[%clk 0:03:00]} 3. d4 {[%clk 0:03:00.7]} 3... cxd4 {[%clk 0:03:00.9]}
4. Nxd4 {[%clk 0:03:01.6]} 4... Nf6 {[%clk 0:03:01.4]} 5. Nc3 {[%clk 0:03:01.8]}
5... e5 {[%clk 0:03:01.9]} 6. Ndb5 {[%clk 0:03:02.2]} 6... d6 {[%clk 0:03:02.5]}
7. Bg5 {[%clk 0:03:01.6]} 7... a6 {[%clk 0:03:02.3]} 8. Na3 {[%clk 0:03:02.2]}
8... b5 {[%clk 0:03:02.6]} 9. Nd5 {[%clk 0:03:01.7]} 9... Be7 {[%clk 0:03:03]}
10. Bxf6 {[%clk 0:03:01.6]} 10... Bxf6 {[%clk 0:03:03.4]} 11. c4 {[%clk
0:03:01.5]} 11... b4 {[%clk 0:03:03.5]} 12. Nc2 {[%clk 0:03:00.3]} 12... O-O
{[%clk 0:03:04]} 13. g3 {[%clk 0:02:54.8]} 13... a5 {[%clk 0:03:03.7]} 14. h4
{[%clk 0:02:54.1]} 14... g6 {[%clk 0:03:03.4]} 15. h5 {[%clk 0:02:28]} 15... Bg5
{[%clk 0:03:01.9]} 16. Bh3 {[%clk 0:02:23]} 16... Bb7 {[%clk 0:02:55.4]} 17.
hxg6 {[%clk 0:02:09.7]} 17... hxg6 {[%clk 0:02:54.8]} 18. Bf5 {[%clk 0:01:33.5]}
18... Kg7 {[%clk 0:02:03.2]} 19. Qg4 {[%clk 0:01:32.6]} 19... Nd4 {[%clk
0:01:21.6]} 20. Nxd4 {[%clk 0:01:25.6]} 20... exd4 {[%clk 0:01:22.5]} 21. f4
{[%clk 0:00:19.2]} 21... Bxd5 {[%clk 0:01:22.5]} 22. fxg5 {[%clk 0:00:16.6]}
22... Rh8 {[%clk 0:01:00.2]} 23. Kd2 {[%clk 0:00:05]} 23... gxf5 {[%clk
0:00:39.5]} 24. Qxf5 {[%clk 0:00:02.1]} 24... Be6 {[%clk 0:00:39.9]} 25. Qf4
{[%clk 0:00:01.9]} 25... Qe7 {[%clk 0:00:33.6]} 26. e5 {[%clk 0:00:01.9]} 26...
Kg6 {[%clk 0:00:25.3]} 0-1

[Event "*** Titled Tuesday Blitz"]
[Site "Chess.com"]
[Date "2020.11.03"]
[Round "7"]
[White "mjray79"]
[Black "Trickov"]
[Result "1/2-1/2"]
[WhiteElo "2481"]
[BlackElo "2330"]
[TimeControl "180+1"]
[EndTime "11:20:22 PST"]
[Termination "Game drawn by repetition"]

1. d4 {[%clk 0:03:00.9]} 1... d5 {[%clk 0:02:51.5]} 2. c4 {[%clk 0:03:01.1]}
2... c6 {[%clk 0:02:50.4]} 3. Nf3 {[%clk 0:03:01.3]} 3... Nf6 {[%clk 0:02:49.2]}
4. Nc3 {[%clk 0:03:01.6]} 4... dxc4 {[%clk 0:02:48.5]} 5. a4 {[%clk 0:03:01.2]}
5... Bf5 {[%clk 0:02:46.9]} 6. Ne5 {[%clk 0:03:01]} 6... Nbd7 {[%clk 0:02:46]}
7. Nxc4 {[%clk 0:03:00.6]} 7... Qc7 {[%clk 0:02:44.9]} 8. g3 {[%clk 0:03:00.5]}
8... e5 {[%clk 0:02:45.4]} 9. dxe5 {[%clk 0:03:00]} 9... Nxe5 {[%clk 0:02:44.8]}
10. Bf4 {[%clk 0:03:00.1]} 10... Rd8 {[%clk 0:02:43.4]} 11. Qb3 {[%clk
0:02:52.6]} 11... Be6 {[%clk 0:02:42.5]} 12. Bxe5 {[%clk 0:02:42.5]} 12... Qxe5
{[%clk 0:02:40.1]} 13. Nxe5 {[%clk 0:02:43.4]} 13... Bxb3 {[%clk 0:02:35.4]} 14.
Bg2 {[%clk 0:02:42.4]} 14... Bb4 {[%clk 0:02:32]} 15. Nd3 {[%clk 0:02:27.3]}
15... a5 {[%clk 0:01:57.6]} 16. Nxb4 {[%clk 0:02:20.4]} 16... axb4 {[%clk
0:01:56]} 17. Ne4 {[%clk 0:02:20.9]} 17... Nxe4 {[%clk 0:01:46]} 18. Bxe4 {[%clk
0:02:21.8]} 18... Ke7 {[%clk 0:01:43.6]} 19. a5 {[%clk 0:02:14.7]} 19... Rd4
{[%clk 0:01:38.9]} 20. Bd3 {[%clk 0:02:12.7]} 20... Ra8 {[%clk 0:01:32.2]} 21.
Kd2 {[%clk 0:02:07.4]} 21... Rd5 {[%clk 0:01:19.6]} 22. a6 {[%clk 0:02:05.8]}
22... Rxa6 {[%clk 0:01:16]} 23. Rxa6 {[%clk 0:02:04]} 23... bxa6 {[%clk
0:01:15.1]} 24. Ke3 {[%clk 0:02:04.3]} 24... a5 {[%clk 0:01:11.6]} 25. Rc1
{[%clk 0:02:03.4]} 25... Kd6 {[%clk 0:01:07.4]} 26. Be4 {[%clk 0:02:02.9]} 26...
Rc5 {[%clk 0:01:03.2]} 27. Ra1 {[%clk 0:02:02.5]} 27... Bd5 {[%clk 0:01:01.2]}
28. Bd3 {[%clk 0:01:58.7]} 28... h6 {[%clk 0:00:53.1]} 29. Kd4 {[%clk
0:01:55.6]} 29... Bb3 {[%clk 0:00:50.6]} 30. e4 {[%clk 0:01:51.8]} 30... a4
{[%clk 0:00:48.5]} 31. f4 {[%clk 0:01:51.5]} 31... Rh5 {[%clk 0:00:44.3]} 32.
e5+ {[%clk 0:01:45.8]} 32... Kc7 {[%clk 0:00:43.7]} 33. h4 {[%clk 0:01:28.6]}
33... f6 {[%clk 0:00:43.4]} 34. Rc1 {[%clk 0:01:26.1]} 34... fxe5+ {[%clk
0:00:41.8]} 35. fxe5 {[%clk 0:01:27]} 35... Bf7 {[%clk 0:00:27.4]} 36. Rf1
{[%clk 0:01:14.1]} 36... Be8 {[%clk 0:00:26.7]} 37. Be2 {[%clk 0:01:13]} 37...
c5+ {[%clk 0:00:26]} 38. Kd5 {[%clk 0:00:52.3]} 38... Bc6+ {[%clk 0:00:23.3]}
39. Ke6 {[%clk 0:00:52.4]} 39... Bd7+ {[%clk 0:00:22.3]} 40. Kd5 {[%clk
0:00:52.4]} 40... Bc6+ {[%clk 0:00:22.6]} 41. Ke6 {[%clk 0:00:51.8]} 41... Bd7+
{[%clk 0:00:23]} 42. Kd5 {[%clk 0:00:46.9]} 42... Bc6+ {[%clk 0:00:23.2]}
1/2-1/2

[Event "*** Titled Tuesday Blitz"]
[Site "Chess.com"]
[Date "2020.11.03"]
[Round "7"]
[White "GMG"]
[Black "dretch"]
[Result "0-1"]
[WhiteElo "2706"]
[BlackElo "2830"]
[TimeControl "180+1"]
[EndTime "11:20:26 PST"]
[Termination "dretch won on time"]

1. Nf3 {[%clk 0:03:00.9]} 1... d5 {[%clk 0:02:58.9]} 2. g3 {[%clk 0:03:01.2]}
2... Bf5 {[%clk 0:02:55.7]} 3. Bg2 {[%clk 0:03:01.2]} 3... e6 {[%clk 0:02:55.2]}
4. O-O {[%clk 0:03:01.7]} 4... Nd7 {[%clk 0:02:54.5]} 5. d3 {[%clk 0:03:00.6]}
5... Ngf6 {[%clk 0:02:46.4]} 6. c4 {[%clk 0:03:00.8]} 6... c6 {[%clk 0:02:43.8]}
7. cxd5 {[%clk 0:02:59]} 7... cxd5 {[%clk 0:02:42.1]} 8. Nc3 {[%clk 0:02:56.3]}
8... Be7 {[%clk 0:02:37]} 9. Bf4 {[%clk 0:02:56.3]} 9... O-O {[%clk 0:02:35.5]}
10. Nb5 {[%clk 0:02:52.9]} 10... Qb6 {[%clk 0:02:31.3]} 11. a4 {[%clk
0:02:47.9]} 11... Rfc8 {[%clk 0:02:25.1]} 12. Rc1 {[%clk 0:02:42.8]} 12... Ne8
{[%clk 0:01:38.2]} 13. Ne5 {[%clk 0:02:02.7]} 13... Nxe5 {[%clk 0:01:31.9]} 14.
Bxe5 {[%clk 0:02:03.6]} 14... a6 {[%clk 0:01:26.9]} 15. Nd4 {[%clk 0:01:59]}
15... Bg6 {[%clk 0:01:21.5]} 16. Qb3 {[%clk 0:01:48.9]} 16... Bb4 {[%clk
0:01:03.2]} 17. Nc2 {[%clk 0:01:08.7]} 17... Ba5 {[%clk 0:00:56.1]} 18. Qxb6
{[%clk 0:01:08.3]} 18... Bxb6 {[%clk 0:00:57]} 19. b4 {[%clk 0:01:05.9]} 19...
Bh5 {[%clk 0:00:48.8]} 20. Rfe1 {[%clk 0:00:40.6]} 20... Rc6 {[%clk 0:00:46.8]}
21. Nd4 {[%clk 0:00:11.3]} 21... Rxc1 {[%clk 0:00:46.4]} 22. Rxc1 {[%clk
0:00:12.2]} 22... f6 {[%clk 0:00:46.6]} 23. Nxe6 {[%clk 0:00:05.9]} 23... fxe5
{[%clk 0:00:45]} 24. Bxd5 {[%clk 0:00:06.5]} 24... Bf7 {[%clk 0:00:41.4]} 25.
Bxb7 {[%clk 0:00:06.8]} 25... Rb8 {[%clk 0:00:41.3]} 26. Bc8 {[%clk 0:00:05.9]}
26... e4 {[%clk 0:00:30.9]} 27. Ng5 {[%clk 0:00:04.3]} 27... exd3 {[%clk
0:00:29.8]} 28. Nxf7 {[%clk 0:00:03.1]} 28... d2 {[%clk 0:00:25.8]} 29. Rd1
{[%clk 0:00:03.6]} 29... Rxc8 {[%clk 0:00:25]} 30. Rxd2 {[%clk 0:00:02]} 30...
Kxf7 {[%clk 0:00:24.6]} 31. Rd7+ {[%clk 0:00:02.2]} 31... Kf8 {[%clk 0:00:24.6]}
32. Rb7 {[%clk 0:00:01.5]} 32... Bd8 {[%clk 0:00:23.7]} 0-1

[Event "*** Titled Tuesday Blitz"]
[Site "Chess.com"]
[Date "2020.11.03"]
[Round "7"]
[White "DishonorOnYourCow"]
[Black "Volodar_Murzin"]
[Result "1-0"]
[WhiteElo "2422"]
[BlackElo "2588"]
[TimeControl "180+1"]
[EndTime "11:20:26 PST"]
[Termination "DishonorOnYourCow won on time"]

1. d4 {[%clk 0:03:00.9]} 1... Nf6 {[%clk 0:02:36.4]} 2. c4 {[%clk 0:02:56.5]}
2... g6 {[%clk 0:02:37.3]} 3. Nc3 {[%clk 0:02:53.9]} 3... Bg7 {[%clk 0:02:37.1]}
4. e4 {[%clk 0:02:54.4]} 4... O-O {[%clk 0:02:36.5]} 5. f4 {[%clk 0:02:54.9]}
5... d6 {[%clk 0:02:35.4]} 6. Nf3 {[%clk 0:02:55.4]} 6... Nbd7 {[%clk
0:02:26.6]} 7. Bd3 {[%clk 0:02:54.4]} 7... c5 {[%clk 0:02:23.4]} 8. d5 {[%clk
0:02:53.6]} 8... e6 {[%clk 0:02:22]} 9. dxe6 {[%clk 0:02:53.2]} 9... fxe6 {[%clk
0:02:20.9]} 10. O-O {[%clk 0:02:53.2]} 10... Kh8 {[%clk 0:01:53.4]} 11. f5
{[%clk 0:02:27]} 11... exf5 {[%clk 0:01:39.9]} 12. exf5 {[%clk 0:02:26.9]} 12...
Ng4 {[%clk 0:01:39.6]} 13. fxg6 {[%clk 0:02:14.4]} 13... Nde5 {[%clk 0:01:31.7]}
14. Nxe5 {[%clk 0:02:07.4]} 14... Bxe5 {[%clk 0:01:29.2]} 15. h3 {[%clk
0:01:38.9]} 15... Bd4+ {[%clk 0:01:16.7]} 16. Kh1 {[%clk 0:01:38.6]} 16... Rxf1+
{[%clk 0:01:16.3]} 17. Qxf1 {[%clk 0:01:35]} 17... Nf2+ {[%clk 0:01:16.5]} 18.
Kh2 {[%clk 0:01:32.4]} 18... Qh4 {[%clk 0:01:04.1]} 19. g3 {[%clk 0:00:58.4]}
19... Qh5 {[%clk 0:00:47.8]} 20. Be2 {[%clk 0:00:56]} 20... Qe5 {[%clk
0:00:39.3]} 21. Bf4 {[%clk 0:00:51.7]} 21... Qg7 {[%clk 0:00:34.4]} 22. g4
{[%clk 0:00:28.6]} 22... Be6 {[%clk 0:00:19.9]} 23. Bg3 {[%clk 0:00:27.9]} 23...
Rf8 {[%clk 0:00:19.1]} 24. Qg2 {[%clk 0:00:28.3]} 24... b5 {[%clk 0:00:06.8]}
25. Rf1 {[%clk 0:00:27.4]} 25... b4 {[%clk 0:00:03.7]} 26. Nb5 {[%clk
0:00:23.4]} 26... Nxg4+ {[%clk 0:00:01.9]} 27. Bxg4 {[%clk 0:00:19.4]} 27...
Bxg4 {[%clk 0:00:01.3]} 28. Rxf8+ {[%clk 0:00:18.8]} 1-0

[Event "*** Titled Tuesday Blitz"]
[Site "Chess.com"]
[Date "2020.11.03"]
[Round "7"]
[White "WiktoriaPOL"]
[Black "VladaSviridova"]
[Result "1/2-1/2"]
[WhiteElo "2094"]
[BlackElo "2277"]
[TimeControl "180+1"]
[EndTime "11:20:27 PST"]
[Termination "Game drawn by repetition"]

1. c4 {[%clk 0:03:00.9]} 1... c6 {[%clk 0:02:59.4]} 2. Nf3 {[%clk 0:02:59.9]}
2... d5 {[%clk 0:02:59.9]} 3. Nc3 {[%clk 0:02:59.4]} 3... Nf6 {[%clk 0:03:00.6]}
4. cxd5 {[%clk 0:02:57.1]} 4... cxd5 {[%clk 0:03:00.4]} 5. d4 {[%clk 0:02:56.9]}
5... Nc6 {[%clk 0:03:00.7]} 6. Bf4 {[%clk 0:02:54.5]} 6... a6 {[%clk 0:03:00.7]}
7. e3 {[%clk 0:02:54.4]} 7... Bf5 {[%clk 0:03:00]} 8. Bd3 {[%clk 0:02:53.7]}
8... Bxd3 {[%clk 0:03:00.2]} 9. Qxd3 {[%clk 0:02:53.3]} 9... e6 {[%clk
0:03:00.3]} 10. O-O {[%clk 0:02:52.2]} 10... Be7 {[%clk 0:03:01]} 11. a3 {[%clk
0:02:51.1]} 11... O-O {[%clk 0:03:00]} 12. Rac1 {[%clk 0:02:50.2]} 12... Nh5
{[%clk 0:02:59.9]} 13. Bg3 {[%clk 0:02:49]} 13... Nxg3 {[%clk 0:02:59.8]} 14.
hxg3 {[%clk 0:02:49.9]} 14... Rc8 {[%clk 0:02:53.9]} 15. Ne2 {[%clk 0:02:47]}
15... Qb6 {[%clk 0:02:49.8]} 16. b4 {[%clk 0:02:44.2]} 16... Na7 {[%clk
0:02:38.5]} 17. Nc3 {[%clk 0:02:36.5]} 17... Rc4 {[%clk 0:02:21]} 18. Ne5 {[%clk
0:02:35.2]} 18... Rcc8 {[%clk 0:02:08.3]} 19. Nd7 {[%clk 0:02:34]} 19... Qd6
{[%clk 0:01:57]} 20. Nxf8 {[%clk 0:02:33]} 20... Bxf8 {[%clk 0:01:57.3]} 21. Na4
{[%clk 0:02:31.2]} 21... Rc6 {[%clk 0:01:18.7]} 22. Rxc6 {[%clk 0:02:29.5]}
22... Qxc6 {[%clk 0:01:18.1]} 23. Nc5 {[%clk 0:02:28.1]} 23... Nb5 {[%clk
0:01:15.9]} 24. Rc1 {[%clk 0:02:25.3]} 24... Nd6 {[%clk 0:01:06.5]} 25. Rc2
{[%clk 0:02:17.5]} 25... Nc4 {[%clk 0:01:02.6]} 26. e4 {[%clk 0:02:14.5]} 26...
Qb5 {[%clk 0:00:49.2]} 27. exd5 {[%clk 0:02:11.4]} 27... exd5 {[%clk 0:00:49]}
28. Qc3 {[%clk 0:02:08.7]} 28... b6 {[%clk 0:00:43.3]} 29. a4 {[%clk 0:02:05.7]}
29... Qe8 {[%clk 0:00:31.7]} 30. Nxa6 {[%clk 0:01:50.3]} 30... Qxa4 {[%clk
0:00:31.1]} 31. b5 {[%clk 0:01:41.1]} 31... g6 {[%clk 0:00:19.7]} 32. Nc7 {[%clk
0:01:38.8]} 32... Bb4 {[%clk 0:00:17]} 33. Qd3 {[%clk 0:01:33]} 33... Qa1+
{[%clk 0:00:16]} 34. Kh2 {[%clk 0:01:32.2]} 34... Bd6 {[%clk 0:00:13.7]} 35.
Nxd5 {[%clk 0:01:30.6]} 35... Na3 {[%clk 0:00:12.7]} 36. Re2 {[%clk 0:01:17.8]}
36... Qc1 {[%clk 0:00:09.4]} 37. Nf6+ {[%clk 0:01:17.1]} 37... Kf8 {[%clk
0:00:07.7]} 38. Nd7+ {[%clk 0:01:05.6]} 38... Kg7 {[%clk 0:00:07.6]} 39. Nxb6
{[%clk 0:01:05.3]} 39... Qh6+ {[%clk 0:00:07]} 40. Kg1 {[%clk 0:00:57.8]} 40...
Qc1+ {[%clk 0:00:07.5]} 41. Kh2 {[%clk 0:00:51.5]} 41... Qh6+ {[%clk 0:00:07.4]}
42. Kg1 {[%clk 0:00:51.2]} 42... Qc1+ {[%clk 0:00:07.1]} 43. Kh2 {[%clk
0:00:51.1]} 1/2-1/2

[Event "*** Titled Tuesday Blitz"]
[Site "Chess.com"]
[Date "2020.11.03"]
[Round "7"]
[White "Javylavilla"]
[Black "grandcoach"]
[Result "1-0"]
[WhiteElo "2238"]
[BlackElo "2084"]
[TimeControl "180+1"]
[EndTime "11:20:29 PST"]
[Termination "Javylavilla won on time"]

1. e4 {[%clk 0:03:00.9]} 1... c5 {[%clk 0:02:57.8]} 2. Nf3 {[%clk 0:03:00.3]}
2... Nc6 {[%clk 0:02:58.2]} 3. d4 {[%clk 0:03:01.2]} 3... cxd4 {[%clk
0:02:58.3]} 4. Nxd4 {[%clk 0:03:02.1]} 4... e5 {[%clk 0:02:58.7]} 5. Nb5 {[%clk
0:03:00.8]} 5... d6 {[%clk 0:02:58.6]} 6. N1c3 {[%clk 0:02:57.4]} 6... a6 {[%clk
0:02:58.2]} 7. Na3 {[%clk 0:02:57.4]} 7... b5 {[%clk 0:02:58.7]} 8. Nd5 {[%clk
0:02:57.4]} 8... Nge7 {[%clk 0:02:59.2]} 9. c4 {[%clk 0:02:57.4]} 9... Nxd5
{[%clk 0:02:55.8]} 10. Qxd5 {[%clk 0:02:56.9]} 10... Bb7 {[%clk 0:02:43]} 11.
cxb5 {[%clk 0:02:53.4]} 11... Na5 {[%clk 0:02:35.5]} 12. Qd1 {[%clk 0:02:34.4]}
12... Bxe4 {[%clk 0:02:31.3]} 13. bxa6 {[%clk 0:02:31.1]} 13... Be7 {[%clk
0:02:24.4]} 14. Bb5+ {[%clk 0:02:28.7]} 14... Bc6 {[%clk 0:02:16.1]} 15. Qa4
{[%clk 0:02:15.4]} 15... Qb6 {[%clk 0:01:56.7]} 16. Be3 {[%clk 0:02:10.8]} 16...
Qc7 {[%clk 0:01:26.4]} 17. Rc1 {[%clk 0:02:06.6]} 17... O-O {[%clk 0:00:42.2]}
18. Bxc6 {[%clk 0:02:05]} 18... Nxc6 {[%clk 0:00:38.9]} 19. Rxc6 {[%clk
0:02:05.9]} 19... Qd7 {[%clk 0:00:33.7]} 20. Qc4 {[%clk 0:02:02.3]} 20... d5
{[%clk 0:00:31.2]} 21. Qc2 {[%clk 0:02:00.4]} 21... Bb4+ {[%clk 0:00:29.1]} 22.
Bd2 {[%clk 0:01:51.7]} 22... Bxd2+ {[%clk 0:00:28.6]} 23. Kxd2 {[%clk
0:01:52.6]} 23... Rfc8 {[%clk 0:00:20.5]} 24. Rc1 {[%clk 0:01:51.2]} 24... Re8
{[%clk 0:00:14]} 25. Rc7 {[%clk 0:01:44.3]} 25... Qg4 {[%clk 0:00:13.7]} 26. Qd3
{[%clk 0:01:33.1]} 26... Qxg2 {[%clk 0:00:12]} 27. Qg3 {[%clk 0:01:30.8]} 27...
Qe4 {[%clk 0:00:10.9]} 28. Rg1 {[%clk 0:01:30.2]} 28... g6 {[%clk 0:00:08.4]}
29. Nc2 {[%clk 0:01:28.9]} 29... d4 {[%clk 0:00:06.4]} 30. Re1 {[%clk
0:01:24.8]} 30... Qd5 {[%clk 0:00:06.1]} 31. Qb3 {[%clk 0:01:21.8]} 31... Qa5+
{[%clk 0:00:04.4]} 32. Kc1 {[%clk 0:01:20]} 32... Qxc7 {[%clk 0:00:04.3]} 33.
Kb1 {[%clk 0:01:15.4]} 33... Rxa6 {[%clk 0:00:04.4]} 34. Qb5 {[%clk 0:01:14.6]}
34... Raa8 {[%clk 0:00:03.8]} 35. Nxd4 {[%clk 0:01:13.4]} 35... exd4 {[%clk
0:00:02.9]} 36. Rxe8+ {[%clk 0:01:12.1]} 36... Rxe8 {[%clk 0:00:03.8]} 37. Qxe8+
{[%clk 0:01:12.6]} 37... Kg7 {[%clk 0:00:04.2]} 38. Qe4 {[%clk 0:01:12.3]} 38...
Qd6 {[%clk 0:00:03.9]} 39. Kc2 {[%clk 0:01:11]} 39... d3+ {[%clk 0:00:03.7]} 40.
Qxd3 {[%clk 0:01:10.6]} 40... Qxh2 {[%clk 0:00:02.9]} 41. Qd4+ {[%clk
0:01:08.9]} 41... f6 {[%clk 0:00:02.4]} 42. a4 {[%clk 0:01:07.7]} 42... g5
{[%clk 0:00:02]} 43. a5 {[%clk 0:01:07.5]} 43... Qc7+ {[%clk 0:00:02.1]} 44. Qc3
{[%clk 0:01:06.4]} 44... Qa7 {[%clk 0:00:01.6]} 45. Qd2 {[%clk 0:01:01.2]} 1-0

[Event "*** Titled Tuesday Blitz"]
[Site "Chess.com"]
[Date "2020.11.03"]
[Round "7"]
[White "fyall777"]
[Black "anon102030"]
[Result "0-1"]
[WhiteElo "2443"]
[BlackElo "2663"]
[TimeControl "180+1"]
[EndTime "11:20:30 PST"]
[Termination "anon102030 won on time"]

1. d4 {[%clk 0:03:00.9]} 1... Nf6 {[%clk 0:02:48.6]} 2. Nc3 {[%clk 0:03:00]}
2... d5 {[%clk 0:02:45]} 3. Bg5 {[%clk 0:02:59.4]} 3... e6 {[%clk 0:02:44]} 4.
f3 {[%clk 0:02:58.5]} 4... Be7 {[%clk 0:02:43.2]} 5. e4 {[%clk 0:02:53.8]} 5...
Nxe4 {[%clk 0:02:30]} 6. Bxe7 {[%clk 0:02:46.9]} 6... Nxc3 {[%clk 0:02:29.9]} 7.
Bxd8 {[%clk 0:02:46.2]} 7... Nxd1 {[%clk 0:02:30]} 8. Bxc7 {[%clk 0:02:46.1]}
8... Nxb2 {[%clk 0:02:26.1]} 9. Rb1 {[%clk 0:02:42.8]} 9... Nc4 {[%clk 0:02:20]}
10. Bxc4 {[%clk 0:02:17.2]} 10... dxc4 {[%clk 0:02:20.9]} 11. Rb4 {[%clk
0:02:07.4]} 11... Na6 {[%clk 0:02:08.9]} 12. Rxc4 {[%clk 0:02:00.6]} 12... b5
{[%clk 0:02:08.6]} 13. Rc3 {[%clk 0:01:57.7]} 13... b4 {[%clk 0:01:42.2]} 14.
Rc4 {[%clk 0:01:33.1]} 14... Bb7 {[%clk 0:01:36.6]} 15. Bd6 {[%clk 0:01:24.7]}
15... Bd5 {[%clk 0:01:34.9]} 16. Rxb4 {[%clk 0:01:23.6]} 16... Nxb4 {[%clk
0:01:34.5]} 17. Bxb4 {[%clk 0:01:23.6]} 17... a5 {[%clk 0:01:31.6]} 18. Bc5
{[%clk 0:01:21.3]} 18... Bxa2 {[%clk 0:01:31.1]} 19. Ne2 {[%clk 0:01:19.1]}
19... Bc4 {[%clk 0:01:30.9]} 20. Nc3 {[%clk 0:01:17.9]} 20... Kd7 {[%clk
0:01:25.1]} 21. Kd2 {[%clk 0:01:16.9]} 21... Rhb8 {[%clk 0:01:24.6]} 22. Ra1
{[%clk 0:01:13]} 22... Bb5 {[%clk 0:01:10.5]} 23. Ne4 {[%clk 0:01:03]} 23... Bc6
{[%clk 0:01:04.9]} 24. Nd6 {[%clk 0:01:01.8]} 24... f6 {[%clk 0:00:59.2]} 25.
Nc4 {[%clk 0:00:55.9]} 25... Ra6 {[%clk 0:00:54.6]} 26. Nxa5 {[%clk 0:00:36.5]}
26... Rb5 {[%clk 0:00:30.7]} 27. Nb3 {[%clk 0:00:11.9]} 27... Rxa1 {[%clk
0:00:31.6]} 28. Nxa1 {[%clk 0:00:08.3]} 28... Rb1 {[%clk 0:00:31.6]} 29. Nb3
{[%clk 0:00:08.3]} 29... Rg1 {[%clk 0:00:31.3]} 30. c4 {[%clk 0:00:02.7]} 30...
Rxg2+ {[%clk 0:00:32.2]} 31. Ke3 {[%clk 0:00:01.7]} 31... Rxh2 {[%clk
0:00:30.6]} 32. Bf8 {[%clk 0:00:01.4]} 32... Rh3 {[%clk 0:00:29.5]} 33. Nc5+
{[%clk 0:00:01.6]} 33... Ke8 {[%clk 0:00:28.5]} 0-1

[Event "*** Titled Tuesday Blitz"]
[Site "Chess.com"]
[Date "2020.11.03"]
[Round "7"]
[White "Kolle05"]
[Black "AntonovaNadezhda"]
[Result "1-0"]
[WhiteElo "2355"]
[BlackElo "2122"]
[TimeControl "180+1"]
[EndTime "11:20:31 PST"]
[Termination "Kolle05 won by resignation"]

1. e4 {[%clk 0:03:00.9]} 1... c5 {[%clk 0:02:58.5]} 2. Nf3 {[%clk 0:03:00.3]}
2... d6 {[%clk 0:02:59.1]} 3. Bb5+ {[%clk 0:02:59.9]} 3... Nd7 {[%clk 0:02:58]}
4. O-O {[%clk 0:02:59.1]} 4... Nf6 {[%clk 0:02:55.7]} 5. Re1 {[%clk 0:02:58.7]}
5... a6 {[%clk 0:02:55.1]} 6. Bf1 {[%clk 0:02:56.1]} 6... Qc7 {[%clk 0:02:49.9]}
7. c3 {[%clk 0:02:55.7]} 7... g6 {[%clk 0:02:48.2]} 8. d4 {[%clk 0:02:55.2]}
8... Bg7 {[%clk 0:02:48]} 9. h3 {[%clk 0:02:17.3]} 9... O-O {[%clk 0:02:45.6]}
10. e5 {[%clk 0:02:16.6]} 10... Nd5 {[%clk 0:02:36.9]} 11. c4 {[%clk 0:01:34.7]}
11... N5b6 {[%clk 0:02:35.9]} 12. exd6 {[%clk 0:01:24.4]} 12... exd6 {[%clk
0:02:35.6]} 13. d5 {[%clk 0:01:23]} 13... Ne5 {[%clk 0:02:30.8]} 14. Nxe5 {[%clk
0:01:19.2]} 14... Bxe5 {[%clk 0:02:29.7]} 15. Nc3 {[%clk 0:01:19.2]} 15... Bf5
{[%clk 0:02:21.7]} 16. Bh6 {[%clk 0:01:17.8]} 16... Rfe8 {[%clk 0:02:21.3]} 17.
g4 {[%clk 0:01:16.1]} 17... Bd7 {[%clk 0:02:20.3]} 18. Qf3 {[%clk 0:01:08.7]}
18... f5 {[%clk 0:01:54.2]} 19. Bd3 {[%clk 0:00:52.9]} 19... fxg4 {[%clk
0:01:43]} 20. hxg4 {[%clk 0:00:53.8]} 20... Na4 {[%clk 0:01:31.8]} 21. Ne4
{[%clk 0:00:18]} 21... Nxb2 {[%clk 0:01:19.9]} 22. Nf6+ {[%clk 0:00:17.5]} 22...
Bxf6 {[%clk 0:01:19.1]} 23. Qxf6 {[%clk 0:00:18.4]} 23... Bxg4 {[%clk 0:00:53]}
24. Bxg6 {[%clk 0:00:16]} 24... Rxe1+ {[%clk 0:00:41.7]} 25. Rxe1 {[%clk
0:00:14.8]} 25... hxg6 {[%clk 0:00:41.8]} 26. Qxg6+ {[%clk 0:00:14.4]} 26... Kh8
{[%clk 0:00:41.4]} 27. Qf6+ {[%clk 0:00:13.5]} 27... Kg8 {[%clk 0:00:38.1]} 28.
Re7 {[%clk 0:00:13.9]} 28... Qxe7 {[%clk 0:00:14.1]} 29. Qxe7 {[%clk 0:00:13.7]}
1-0